[Event "Open NK Rapid 2025"]
[Site "Helmond, Netherlands"]
[Date "2025.05.03"]
[Round "9.3"]
[White "Roebers, Eline"]
[Black "Fridman, Daniel"]
[Result "0-1"]
[TimeControl "15+5"]
[WhiteFideId "1058401"]
[BlackFideId "11600454"]
[WhiteElo "2390"]
[BlackElo "2539"]

1. e4 {[%clk 00:15:08]} {[%emt 00:00:01]} e6 {[%clk 00:15:05]} {[%emt
00:00:05]} 2. d4 {[%clk 00:15:11]} {[%emt 00:00:03]} d5 {[%clk 00:15:08]} 3.
Nc3 {[%clk 00:14:53]} {[%emt 00:00:24]} Nf6 {[%clk 00:15:11]} {[%emt 00:00:02]}
4. e5 {[%clk 00:14:57]} {[%emt 00:00:02]} Nfd7 {[%clk 00:15:15]} {[%emt
00:00:01]} 5. f4 {[%clk 00:15:01]} c5 {[%clk 00:15:18]} {[%emt 00:00:01]} 6.
Nf3 {[%clk 00:15:05]} Nc6 {[%clk 00:15:22]} {[%emt 00:00:01]} 7. Be3 {[%clk
00:15:09]} Qb6 {[%clk 00:15:25]} {[%emt 00:00:02]} 8. Na4 {[%clk 00:15:01]}
{[%emt 00:00:14]} Qa5+ {[%clk 00:15:29]} {[%emt 00:00:01]} 9. c3 {[%clk
00:14:58]} {[%emt 00:00:08]} b6 {[%clk 00:15:32]} 10. Bd3 {[%clk 00:11:17]}
{[%emt 00:03:46]} Ba6 {[%clk 00:15:34]} {[%emt 00:00:03]} 11. Bc2 {[%clk
00:11:00]} {[%emt 00:00:23]} Bb5 {[%clk 00:08:36]} {[%emt 00:07:02]} 12. a3
{[%clk 00:10:01]} {[%emt 00:01:05]} c4 {[%clk 00:08:38]} {[%emt 00:00:02]} 13.
O-O {[%clk 00:09:36]} {[%emt 00:00:30]} Be7 {[%clk 00:08:39]} {[%emt 00:00:04]}
14. f5 {[%clk 00:06:35]} {[%emt 00:03:06]} exf5 {[%clk 00:08:41]} {[%emt
00:00:03]} 15. Ng5 {[%clk 00:06:38]} {[%emt 00:00:02]} Bxg5 {[%clk 00:08:43]}
{[%emt 00:00:03]} 16. Bxg5 {[%clk 00:06:41]} {[%emt 00:00:02]} g6 {[%clk
00:08:33]} {[%emt 00:00:14]} 17. g4 {[%clk 00:06:11]} {[%emt 00:00:36]} f4
{[%clk 00:08:25]} {[%emt 00:00:13]} 18. Qf3 {[%clk 00:04:27]} {[%emt 00:01:49]}
f6 {[%clk 00:03:41]} {[%emt 00:04:49]} 19. exf6 {[%clk 00:02:49]} {[%emt
00:01:43]} O-O-O {[%clk 00:03:43]} {[%emt 00:00:03]} 20. f7 {[%clk 00:02:53]}
{[%emt 00:00:02]} Bxa4 {[%clk 00:03:23]} {[%emt 00:00:24]} 21. Bxa4 {[%clk
00:02:57]} {[%emt 00:00:02]} Qxa4 {[%clk 00:03:26]} {[%emt 00:00:02]} 22. Bxd8
{[%clk 00:03:00]} {[%emt 00:00:01]} Nxd8 {[%clk 00:02:59]} {[%emt 00:00:32]} 23.
Qxd5 {[%clk 00:02:42]} {[%emt 00:00:23]} Qc6 {[%clk 00:02:55]} {[%emt
00:00:09]} 24. Qxc6+ {[%clk 00:02:45]} {[%emt 00:00:03]} Nxc6 {[%clk 00:02:58]}
{[%emt 00:00:01]} 25. Rxf4 {[%clk 00:02:49]} {[%emt 00:00:02]} Rf8 {[%clk
00:02:54]} {[%emt 00:00:08]} 26. Re1 {[%clk 00:02:25]} {[%emt 00:00:29]} Kd8
{[%clk 00:02:57]} {[%emt 00:00:02]} 27. h4 {[%clk 00:02:01]} {[%emt 00:00:29]}
Ne7 {[%clk 00:02:59]} {[%emt 00:00:04]} 28. Re6 {[%clk 00:01:57]} {[%emt
00:00:09]} Nd5 {[%clk 00:02:46]} {[%emt 00:00:18]} 29. Rf3 {[%clk 00:02:00]}
{[%emt 00:00:01]} Nc7 {[%clk 00:02:37]} {[%emt 00:00:14]} 30. Re4 {[%clk
00:01:45]} {[%emt 00:00:20]} b5 {[%clk 00:02:36]} {[%emt 00:00:06]} 31. h5
{[%clk 00:01:23]} {[%emt 00:00:28]} Nb6 {[%clk 00:02:34]} {[%emt 00:00:07]} 32.
hxg6 {[%clk 00:00:55]} {[%emt 00:00:33]} hxg6 {[%clk 00:02:37]} 33. Kg2 {[%clk
00:00:49]} {[%emt 00:00:11]} Nbd5 {[%clk 00:02:21]} {[%emt 00:00:21]} 34. Kg3
{[%clk 00:00:53]} {[%emt 00:00:02]} Kd7 {[%clk 00:02:20]} {[%emt 00:00:06]} 35.
Re5 {[%clk 00:00:26]} {[%emt 00:00:32]} Ne7 {[%clk 00:01:21]} {[%emt 00:01:04]}
36. Kh4 {[%clk 00:00:26]} {[%emt 00:00:05]} Nc6 {[%clk 00:00:46]} {[%emt
00:00:40]} 37. Re2 {[%clk 00:00:15]} {[%emt 00:00:15]} Nd8 {[%clk 00:00:43]}
{[%emt 00:00:08]} 38. Rf6 {[%clk 00:00:08]} {[%emt 00:00:12]} Nd5 {[%clk
00:00:35]} {[%emt 00:00:13]} 39. Rxg6 {[%clk 00:00:12]} {[%emt 00:00:02]} Rxf7
{[%clk 00:00:38]} {[%emt 00:00:01]} 40. Ra6 {[%clk 00:00:12]} {[%emt 00:00:05]}
Nc6 {[%clk 00:00:42]} 41. Kg3 {[%clk 00:00:14]} {[%emt 00:00:03]} Nc7 {[%clk
00:00:44]} {[%emt 00:00:03]} 42. Rxc6 {[%clk 00:00:16]} {[%emt 00:00:03]} Kxc6
{[%clk 00:00:48]} {[%emt 00:00:01]} 43. g5 {[%clk 00:00:18]} {[%emt 00:00:03]}
Kd6 {[%clk 00:00:49]} {[%emt 00:00:04]} 44. Re5 {[%clk 00:00:21]} {[%emt
00:00:03]} Rf1 {[%clk 00:00:47]} {[%emt 00:00:06]} 45. Kg4 {[%clk 00:00:24]}
{[%emt 00:00:03]} Rf2 {[%clk 00:00:45]} {[%emt 00:00:07]} 46. g6 {[%clk
00:00:23]} {[%emt 00:00:06]} Rxb2 {[%clk 00:00:45]} {[%emt 00:00:04]} 47. Kf5
{[%clk 00:00:20]} {[%emt 00:00:09]} Rf2+ {[%clk 00:00:46]} {[%emt 00:00:04]} 48.
Kg5 {[%clk 00:00:18]} {[%emt 00:00:07]} Ne6+ {[%clk 00:00:48]} {[%emt
00:00:03]} 49. Kh5 {[%clk 00:00:19]} {[%emt 00:00:03]} a6 {[%clk 00:00:44]}
{[%emt 00:00:09]} 50. a4 {[%clk 00:00:23]} {[%emt 00:00:01]} Rh2+ {[%clk
00:00:38]} {[%emt 00:00:11]} 51. Kg4 {[%clk 00:00:27]} {[%emt 00:00:01]} Rg2+
{[%clk 00:00:42]} {[%emt 00:00:02]} 52. Kf5 {[%clk 00:00:24]} {[%emt 00:00:08]}
Rg5+ {[%clk 00:00:42]} {[%emt 00:00:05]} 53. Kf6 {[%clk 00:00:28]} {[%emt
00:00:01]} Rxe5 {[%clk 00:00:45]} {[%emt 00:00:01]} 54. dxe5+ {[%clk 00:00:32]}
Kd5 {[%clk 00:00:49]} 55. axb5 {[%clk 00:00:36]} {[%emt 00:00:02]} axb5 {[%clk
00:00:53]} {[%emt 00:00:01]} 0-1

[Event "Open NK Rapid 2025"]
[Site "Helmond, Netherlands"]
[Date "2025.05.03"]
[Round "9.4"]
[White "Stolwijk, Colin"]
[Black "Peng, Li Min"]
[Result "0-1"]
[TimeControl "15+5"]
[WhiteFideId "1033743"]
[BlackFideId "14112620"]
[WhiteElo "2286"]
[BlackElo "2510"]

1. e4 {[%clk 00:15:07]} {[%emt 00:00:02]} g6 {[%clk 00:15:08]} {[%emt
00:00:03]} 2. d4 {[%clk 00:15:08]} {[%emt 00:00:04]} Bg7 {[%clk 00:15:10]}
{[%emt 00:00:02]} 3. Nf3 {[%clk 00:15:08]} {[%emt 00:00:06]} d6 {[%clk
00:15:13]} {[%emt 00:00:02]} 4. Be3 {[%clk 00:15:09]} {[%emt 00:00:04]} Nf6
{[%clk 00:13:44]} {[%emt 00:01:34]} 5. Nc3 {[%clk 00:15:12]} {[%emt 00:00:02]}
Nc6 {[%clk 00:13:35]} {[%emt 00:00:14]} 6. h3 {[%clk 00:14:16]} {[%emt
00:01:01]} O-O {[%clk 00:13:05]} {[%emt 00:00:34]} 7. Qd2 {[%clk 00:14:14]}
{[%emt 00:00:08]} a6 {[%clk 00:13:07]} {[%emt 00:00:03]} 8. Bh6 {[%clk
00:13:00]} {[%emt 00:01:18]} b5 {[%clk 00:13:09]} {[%emt 00:00:03]} 9. Bd3
{[%clk 00:12:57]} {[%emt 00:00:09]} e5 {[%clk 00:13:07]} {[%emt 00:00:07]} 10.
d5 {[%clk 00:11:08]} {[%emt 00:01:54]} Ne7 {[%clk 00:13:10]} {[%emt 00:00:01]}
11. g4 {[%clk 00:10:45]} {[%emt 00:00:28]} c6 {[%clk 00:12:41]} {[%emt
00:00:34]} 12. Bxg7 {[%clk 00:09:26]} {[%emt 00:01:24]} Kxg7 {[%clk 00:12:44]}
{[%emt 00:00:03]} 13. dxc6 {[%clk 00:09:29]} {[%emt 00:00:02]} Nxc6 {[%clk
00:12:15]} {[%emt 00:00:34]} 14. O-O-O {[%clk 00:08:37]} {[%emt 00:00:57]} Be6
{[%clk 00:12:18]} {[%emt 00:00:01]} 15. g5 {[%clk 00:07:10]} {[%emt 00:01:33]}
Nh5 {[%clk 00:11:54]} {[%emt 00:00:28]} 16. Bf1 {[%clk 00:07:10]} {[%emt
00:00:05]} Qb6 {[%clk 00:10:59]} {[%emt 00:01:01]} 17. Nd5 {[%clk 00:06:29]}
{[%emt 00:00:46]} Bxd5 {[%clk 00:10:53]} {[%emt 00:00:10]} 18. exd5 {[%clk
00:06:32]} {[%emt 00:00:02]} Ne7 {[%clk 00:10:47]} {[%emt 00:00:12]} 19. Nh2
{[%clk 00:05:51]} {[%emt 00:00:46]} Rac8 {[%clk 00:10:15]} {[%emt 00:00:37]} 20.
Ng4 {[%clk 00:05:45]} {[%emt 00:00:10]} Rc5 {[%clk 00:10:16]} {[%emt 00:00:04]}
21. Nf6 {[%clk 00:05:15]} {[%emt 00:00:35]} Nxf6 {[%clk 00:06:59]} {[%emt
00:03:23]} 22. gxf6+ {[%clk 00:05:19]} {[%emt 00:00:01]} Kxf6 {[%clk 00:07:03]}
{[%emt 00:00:02]} 23. Qh6 {[%clk 00:04:02]} {[%emt 00:01:21]} Rfc8 {[%clk
00:07:05]} {[%emt 00:00:03]} 24. Bd3 {[%clk 00:03:27]} {[%emt 00:00:39]} Nxd5
{[%clk 00:07:08]} {[%emt 00:00:02]} 25. Rhg1 {[%clk 00:02:17]} {[%emt
00:01:15]} Nf4 {[%clk 00:06:50]} {[%emt 00:00:23]} 26. Kb1 {[%clk 00:02:20]}
{[%emt 00:00:03]} Ke7 {[%clk 00:05:21]} {[%emt 00:01:34]} 27. Qh4+ {[%clk
00:02:23]} {[%emt 00:00:01]} Ke6 {[%clk 00:04:27]} {[%emt 00:00:57]} 28. Qxh7
{[%clk 00:01:16]} {[%emt 00:01:15]} Rd5 {[%clk 00:04:24]} {[%emt 00:00:08]} 29.
Qh4 {[%clk 00:00:55]} {[%emt 00:00:26]} Qc6 {[%clk 00:03:28]} {[%emt 00:01:00]}
30. Rc1 {[%clk 00:00:39]} {[%emt 00:00:22]} Rc5 {[%clk 00:02:44]} {[%emt
00:00:49]} 31. Qg4+ {[%clk 00:00:42]} {[%emt 00:00:02]} Kf6 {[%clk 00:02:45]}
{[%emt 00:00:04]} 32. Qg5+ {[%clk 00:00:10]} {[%emt 00:00:38]} Kg7 {[%clk
00:02:48]} 33. h4 {[%clk 00:00:13]} Nxd3 {[%clk 00:02:02]} {[%emt 00:00:52]} 34.
cxd3 {[%clk 00:00:17]} Rxc1+ {[%clk 00:02:01]} {[%emt 00:00:06]} 35. Rxc1
{[%clk 00:00:21]} Qxc1+ {[%clk 00:01:34]} {[%emt 00:00:31]} 36. Qxc1 {[%clk
00:00:25]} {[%emt 00:00:02]} Rxc1+ {[%clk 00:01:38]} {[%emt 00:00:01]} 37. Kxc1
{[%clk 00:00:29]} Kh6 {[%clk 00:01:41]} {[%emt 00:00:01]} 38. Kd2 {[%clk
00:00:32]} {[%emt 00:00:02]} Kh5 {[%clk 00:01:44]} {[%emt 00:00:03]} 39. Kc3
{[%clk 00:00:36]} {[%emt 00:00:01]} Kxh4 {[%clk 00:00:57]} {[%emt 00:00:51]} 40.
Kb4 {[%clk 00:00:41]} f5 {[%clk 00:01:01]} {[%emt 00:00:01]} 41. Ka5 {[%clk
00:00:43]} {[%emt 00:00:03]} g5 {[%clk 00:01:04]} {[%emt 00:00:01]} 42. Kxa6
{[%clk 00:00:43]} {[%emt 00:00:05]} g4 {[%clk 00:01:08]} {[%emt 00:00:01]} 43.
Kxb5 {[%clk 00:00:39]} {[%emt 00:00:10]} f4 {[%clk 00:01:12]} {[%emt 00:00:01]}
44. a4 {[%clk 00:00:20]} {[%emt 00:00:24]} g3 {[%clk 00:01:16]} 45. a5 {[%clk
00:00:24]} {[%emt 00:00:01]} gxf2 {[%clk 00:01:17]} {[%emt 00:00:04]} 0-1

[Event "Open NK Rapid 2025"]
[Site "Helmond, Netherlands"]
[Date "2025.05.03"]
[Round "9.5"]
[White "Dgebuadze, Alexandre"]
[Black "Smeets, Kobe"]
[Result "1-0"]
[TimeControl "15+5"]
[WhiteFideId "203882"]
[BlackFideId "1063910"]
[WhiteElo "2454"]
[BlackElo "2192"]

1. e4 {[%clk 00:15:07]} {[%emt 00:00:02]} e5 {[%clk 00:15:09]} {[%emt
00:00:02]} 2. Nf3 {[%clk 00:15:10]} {[%emt 00:00:02]} Nc6 {[%clk 00:15:13]}
{[%emt 00:00:01]} 3. Bb5 {[%clk 00:15:13]} {[%emt 00:00:03]} a6 {[%clk
00:15:15]} {[%emt 00:00:02]} 4. Ba4 {[%clk 00:15:16]} {[%emt 00:00:01]} Nf6
{[%clk 00:15:15]} {[%emt 00:00:05]} 5. d3 {[%clk 00:15:19]} {[%emt 00:00:03]}
d6 {[%clk 00:15:19]} 6. c4 {[%clk 00:15:11]} {[%emt 00:00:13]} g6 {[%clk
00:15:04]} {[%emt 00:00:20]} 7. Nc3 {[%clk 00:14:45]} {[%emt 00:00:31]} Bg7
{[%clk 00:15:05]} {[%emt 00:00:04]} 8. Nd5 {[%clk 00:14:38]} {[%emt 00:00:12]}
h6 {[%clk 00:14:14]} {[%emt 00:00:56]} 9. h3 {[%clk 00:14:16]} {[%emt
00:00:27]} Bd7 {[%clk 00:14:02]} {[%emt 00:00:17]} 10. Be3 {[%clk 00:14:06]}
{[%emt 00:00:14]} Nxd5 {[%clk 00:13:54]} {[%emt 00:00:14]} 11. cxd5 {[%clk
00:14:07]} {[%emt 00:00:03]} Ne7 {[%clk 00:13:58]} {[%emt 00:00:02]} 12. Bxd7+
{[%clk 00:13:51]} {[%emt 00:00:20]} Qxd7 {[%clk 00:14:01]} {[%emt 00:00:02]} 13.
d4 {[%clk 00:13:34]} {[%emt 00:00:22]} exd4 {[%clk 00:13:02]} {[%emt 00:01:05]}
14. Bxd4 {[%clk 00:13:35]} {[%emt 00:00:04]} O-O {[%clk 00:13:04]} {[%emt
00:00:03]} 15. Bxg7 {[%clk 00:13:32]} {[%emt 00:00:08]} Kxg7 {[%clk 00:13:08]}
{[%emt 00:00:01]} 16. Qd4+ {[%clk 00:13:30]} {[%emt 00:00:07]} Kh7 {[%clk
00:13:11]} {[%emt 00:00:02]} 17. O-O {[%clk 00:13:28]} {[%emt 00:00:06]} Rae8
{[%clk 00:11:14]} {[%emt 00:02:02]} 18. Rad1 {[%clk 00:13:09]} {[%emt
00:00:24]} Nc8 {[%clk 00:10:15]} {[%emt 00:01:05]} 19. e5 {[%clk 00:12:44]}
{[%emt 00:00:30]} Nb6 {[%clk 00:08:07]} {[%emt 00:02:13]} 20. Rfe1 {[%clk
00:12:39]} {[%emt 00:00:10]} Qa4 {[%clk 00:07:45]} {[%emt 00:00:28]} 21. b4
{[%clk 00:11:11]} {[%emt 00:01:33]} dxe5 {[%clk 00:06:27]} {[%emt 00:01:22]} 22.
Nxe5 {[%clk 00:11:06]} {[%emt 00:00:09]} Nd7 {[%clk 00:06:24]} {[%emt
00:00:08]} 23. Ng4 {[%clk 00:10:52]} {[%emt 00:00:19]} h5 {[%clk 00:06:05]}
{[%emt 00:00:24]} 24. Ne3 {[%clk 00:10:52]} {[%emt 00:00:05]} Re5 {[%clk
00:03:40]} {[%emt 00:02:31]} 25. Qc3 {[%emt 00:01:10]} Rc8 {[%clk 00:03:12]} 26.
d6 {[%clk 00:10:21]} {[%emt 00:00:04]} c5 {[%clk 00:02:52]} {[%emt 00:00:26]}
27. Nd5 {[%clk 00:10:06]} {[%emt 00:00:19]} Rxe1+ {[%clk 00:02:38]} {[%emt
00:00:19]} 28. Rxe1 {[%clk 00:10:06]} {[%emt 00:00:04]} Qxa2 {[%clk 00:01:05]}
{[%emt 00:01:40]} 29. Nf6+ {[%clk 00:10:06]} {[%emt 00:00:04]} Nxf6 {[%clk
00:01:07]} {[%emt 00:00:03]} 30. Qxf6 {[%clk 00:10:08]} {[%emt 00:00:02]} Qd5
{[%clk 00:01:09]} {[%emt 00:00:03]} 31. Re7 {[%clk 00:09:36]} {[%emt 00:00:37]}
Kg8 {[%clk 00:00:52]} {[%emt 00:00:23]} 32. bxc5 {[%clk 00:08:47]} {[%emt
00:00:55]} a5 {[%clk 00:00:54]} {[%emt 00:00:03]} 33. d7 {[%clk 00:08:28]}
{[%emt 00:00:23]} Rf8 {[%clk 00:00:56]} {[%emt 00:00:03]} 34. Qd6 {[%clk
00:08:19]} {[%emt 00:00:14]} Qf5 {[%clk 00:00:16]} {[%emt 00:00:45]} 35. Re8
{[%clk 00:07:54]} {[%emt 00:00:23]} 1-0

[Event "Open NK Rapid 2025"]
[Site "Helmond, Netherlands"]
[Date "2025.05.03"]
[Round "9.6"]
[White "Grooten, Tommy"]
[Black "Cernov, Vadim"]
[Result "0-1"]
[TimeControl "15+5"]
[WhiteFideId "1068806"]
[BlackFideId "1210629"]
[WhiteElo "2027"]
[BlackElo "2320"]

1. Nf3 {[%clk 00:15:08]} {[%emt 00:00:01]} Nf6 {[%clk 00:15:10]} {[%emt
00:00:01]} 2. c4 {[%clk 00:15:12]} {[%emt 00:00:01]} Nc6 {[%clk 00:15:14]} 3.
d4 {[%clk 00:15:16]} {[%emt 00:00:01]} e6 {[%clk 00:15:18]} 4. a3 {[%clk
00:15:21]} {[%emt 00:00:01]} d6 {[%clk 00:15:22]} {[%emt 00:00:02]} 5. Nc3
{[%clk 00:15:22]} {[%emt 00:00:03]} g6 {[%clk 00:15:23]} {[%emt 00:00:04]} 6.
e4 {[%clk 00:15:23]} {[%emt 00:00:04]} Bg7 {[%clk 00:15:26]} {[%emt 00:00:02]}
7. Be2 {[%clk 00:15:26]} O-O {[%clk 00:15:30]} {[%emt 00:00:02]} 8. d5 {[%clk
00:15:27]} {[%emt 00:00:03]} exd5 {[%clk 00:15:29]} {[%emt 00:00:06]} 9. cxd5
{[%clk 00:15:27]} {[%emt 00:00:05]} Ne7 {[%clk 00:15:33]} {[%emt 00:00:01]} 10.
O-O {[%clk 00:15:27]} {[%emt 00:00:06]} c6 {[%clk 00:15:37]} {[%emt 00:00:02]}
11. dxc6 {[%clk 00:14:33]} {[%emt 00:00:59]} Nxc6 {[%clk 00:15:40]} {[%emt
00:00:01]} 12. Bf4 {[%clk 00:14:30]} {[%emt 00:00:08]} Re8 {[%clk 00:15:42]}
{[%emt 00:00:03]} 13. Qc2 {[%clk 00:13:43]} {[%emt 00:00:52]} d5 {[%clk
00:15:45]} {[%emt 00:00:02]} 14. exd5 {[%clk 00:13:23]} {[%emt 00:00:25]} Nxd5
{[%clk 00:15:05]} {[%emt 00:00:45]} 15. Nxd5 {[%clk 00:10:25]} {[%emt
00:03:02]} Qxd5 {[%clk 00:15:08]} {[%emt 00:00:03]} 16. Rad1 {[%clk 00:08:46]}
{[%emt 00:01:44]} Qf5 {[%clk 00:13:54]} {[%emt 00:01:19]} 17. Qxf5 {[%clk
00:08:41]} {[%emt 00:00:10]} Bxf5 {[%clk 00:13:58]} {[%emt 00:00:01]} 18. Rd2
{[%clk 00:08:44]} {[%emt 00:00:02]} Rad8 {[%clk 00:11:12]} {[%emt 00:02:51]} 19.
Rfd1 {[%clk 00:08:31]} {[%emt 00:00:17]} Rxd2 {[%clk 00:11:09]} {[%emt
00:00:08]} 20. Rxd2 {[%clk 00:08:34]} {[%emt 00:00:02]} h6 {[%clk 00:10:30]}
{[%emt 00:00:45]} 21. h4 {[%clk 00:08:20]} {[%emt 00:00:18]} Na5 {[%clk
00:09:34]} {[%emt 00:01:02]} 22. Bb5 {[%clk 00:07:13]} {[%emt 00:01:12]} Re4
{[%clk 00:08:47]} {[%emt 00:00:52]} 23. Be3 {[%clk 00:07:06]} {[%emt 00:00:12]}
b6 {[%clk 00:06:07]} {[%emt 00:02:45]} 24. Rd8+ {[%clk 00:06:21]} {[%emt
00:00:50]} Kh7 {[%clk 00:06:10]} 25. b4 {[%clk 00:06:25]} {[%emt 00:00:02]} Nb7
{[%clk 00:05:47]} {[%emt 00:00:28]} 26. Nd4 {[%clk 00:05:10]} {[%emt 00:01:19]}
Nxd8 {[%clk 00:05:43]} {[%emt 00:00:10]} 0-1

[Event "Open NK Rapid 2025"]
[Site "Helmond, Netherlands"]
[Date "2025.05.03"]
[Round "9.7"]
[White "Chua, Ethan"]
[Black "Cernov, Henrik"]
[Result "0-1"]
[TimeControl "15+5"]
[WhiteFideId "1089250"]
[BlackFideId "16258312"]
[WhiteElo "2069"]
[BlackElo "2291"]

1. e4 {[%clk 00:15:09]} {[%emt 00:00:02]} c5 {[%clk 00:15:09]} {[%emt
00:00:01]} 2. Nf3 {[%clk 00:15:13]} {[%emt 00:00:01]} e6 {[%clk 00:15:14]} 3.
d4 {[%clk 00:15:17]} cxd4 {[%clk 00:15:18]} {[%emt 00:00:01]} 4. Nxd4 {[%clk
00:15:21]} Nf6 {[%clk 00:15:22]} 5. Nc3 {[%clk 00:15:24]} {[%emt 00:00:01]} Nc6
{[%clk 00:15:27]} 6. Ndb5 {[%clk 00:15:27]} {[%emt 00:00:03]} Bc5 {[%clk
00:15:31]} {[%emt 00:00:01]} 7. Bf4 {[%clk 00:15:21]} {[%emt 00:00:11]} O-O
{[%clk 00:15:34]} {[%emt 00:00:02]} 8. Bc7 {[%clk 00:15:25]} {[%emt 00:00:01]}
Qe7 {[%clk 00:15:39]} 9. Bd6 {[%clk 00:15:29]} {[%emt 00:00:01]} Bxd6 {[%clk
00:15:43]} 10. Qxd6 {[%clk 00:15:27]} {[%emt 00:00:06]} Qd8 {[%clk 00:15:47]}
11. O-O-O {[%clk 00:15:29]} {[%emt 00:00:03]} a6 {[%clk 00:15:50]} {[%emt
00:00:04]} 12. Nd4 {[%clk 00:15:32]} {[%emt 00:00:01]} Ne7 {[%clk 00:15:54]} 13.
h4 {[%clk 00:15:29]} {[%emt 00:00:08]} b5 {[%clk 00:15:49]} {[%emt 00:00:10]}
14. f3 {[%clk 00:15:25]} {[%emt 00:00:08]} Ne8 {[%clk 00:15:50]} {[%emt
00:00:04]} 15. Qf4 {[%clk 00:14:36]} {[%emt 00:00:54]} b4 {[%clk 00:15:49]}
{[%emt 00:00:07]} 16. Nce2 {[%clk 00:13:51]} {[%emt 00:00:50]} Qa5 {[%clk
00:15:46]} {[%emt 00:00:08]} 17. Qd2 {[%clk 00:13:21]} {[%emt 00:00:35]} Qb6
{[%clk 00:15:25]} {[%emt 00:00:26]} 18. h5 {[%clk 00:13:09]} {[%emt 00:00:17]}
a5 {[%clk 00:15:11]} {[%emt 00:00:20]} 19. g4 {[%clk 00:12:36]} {[%emt
00:00:37]} a4 {[%clk 00:15:00]} {[%emt 00:00:16]} 20. g5 {[%clk 00:12:16]}
{[%emt 00:00:25]} Nc6 {[%clk 00:13:31]} {[%emt 00:01:34]} 21. f4 {[%clk
00:10:54]} {[%emt 00:01:27]} Na5 {[%clk 00:11:49]} {[%emt 00:01:48]} 22. Ng3
{[%clk 00:10:09]} {[%emt 00:00:49]} b3 {[%clk 00:11:16]} {[%emt 00:00:37]} 23.
cxb3 {[%clk 00:09:58]} {[%emt 00:00:17]} axb3 {[%clk 00:11:14]} {[%emt
00:00:07]} 24. a3 {[%clk 00:09:55]} {[%emt 00:00:08]} Bb7 {[%clk 00:10:52]}
{[%emt 00:00:28]} 25. Kb1 {[%clk 00:09:47]} {[%emt 00:00:12]} Nd6 {[%clk
00:10:12]} {[%emt 00:00:44]} 26. Bg2 {[%clk 00:08:36]} {[%emt 00:01:17]} Nac4
{[%clk 00:09:55]} {[%emt 00:00:22]} 27. Qe2 {[%clk 00:08:40]} {[%emt 00:00:01]}
Rfc8 {[%clk 00:08:51]} {[%emt 00:01:09]} 28. e5 {[%clk 00:07:59]} {[%emt
00:00:46]} Bxg2 {[%clk 00:08:35]} {[%emt 00:00:21]} 29. Rhg1 {[%clk 00:06:40]}
{[%emt 00:01:25]} Bd5 {[%clk 00:07:04]} {[%emt 00:01:36]} 30. exd6 {[%clk
00:06:43]} {[%emt 00:00:01]} Qxd6 {[%clk 00:06:26]} {[%emt 00:00:43]} 31. f5
{[%clk 00:06:47]} Nxa3+ {[%clk 00:05:47]} {[%emt 00:00:44]} 32. bxa3 {[%clk
00:06:45]} {[%emt 00:00:07]} Qxa3 {[%clk 00:05:47]} {[%emt 00:00:04]} 33. Qb2
{[%clk 00:06:19]} {[%emt 00:00:31]} Qxb2+ {[%clk 00:05:11]} {[%emt 00:00:42]}
34. Kxb2 {[%clk 00:06:23]} Ra2+ {[%clk 00:04:59]} {[%emt 00:00:17]} 35. Kb1
{[%clk 00:06:24]} {[%emt 00:00:04]} b2 {[%clk 00:03:48]} {[%emt 00:01:16]} 36.
h6 {[%clk 00:02:28]} {[%emt 00:04:02]} Rb8 {[%clk 00:01:42]} {[%emt 00:02:11]}
37. Rge1 {[%clk 00:02:22]} {[%emt 00:00:11]} Ra1+ {[%clk 00:01:17]} {[%emt
00:00:30]} 38. Kc2 {[%clk 00:02:24]} {[%emt 00:00:03]} Rxd1 {[%clk 00:01:20]}
{[%emt 00:00:01]} 39. Rxd1 {[%clk 00:02:25]} {[%emt 00:00:03]} Ba2 {[%clk
00:01:25]} 40. Rb1 {[%clk 00:01:49]} {[%emt 00:00:41]} Bxb1+ {[%clk 00:01:29]}
{[%emt 00:00:02]} 41. Kxb1 {[%clk 00:01:53]} {[%emt 00:00:01]} Rb4 {[%clk
00:01:16]} {[%emt 00:00:18]} 42. Nf3 {[%clk 00:01:25]} {[%emt 00:00:31]} Rb3
{[%clk 00:01:15]} {[%emt 00:00:07]} 43. Kc1 {[%emt 00:00:04]} 0-1